[Event "SixDays Budapest GM-A January 2024"]
[Site "Budapest"]
[Date "2024.01.31"]
[Round "8.2"]
[White "Durak, Can"]
[Black "Sedlak, Nikola"]
[Result "1/2-1/2"]
[ECO "A45"]
[WhiteElo "2349"]
[BlackElo "2463"]
[Annotator "TA"]
[PlyCount "27"]
[EventDate "2024.01.26"]
[EventType "tourn"]
[EventCountry "HUN"]
[SourceTitle "playchess.com"]
[Source "ChessBase"]
[SourceQuality "1"]
[TimeControl "5400+30"]

{[%evp 9,27,14,12,11,22,20,23,14,30,29,33,29,27,20,25,12,21,20,25,24]} 1. d4 {[%emt 0:04:23]} Nf6 {[%emt 0:00:20]} 2. Bg5 {[%emt 0:00:29]} Ne4 {[%emt 0:00:28]} 3. Bf4 {[%emt 0:00:12]} d5 {[%emt 0:00:19]} 4. e3 {[%emt 0:00:11]} e6 {[%emt 0:00:27]} 5. Nd2 {[%emt 0:00:11]} Nxd2 {[%emt 0:02:42]} 6. Qxd2 {[%emt 0:00:10]} Bd6 {[%emt 0:02:31]} 7. Nf3 {[%emt 0:00:31]} b6 {[%emt 0:00:55]} 8. c3 {[%emt 0:02:17]} Ba6 {[%emt 0:03:02]} 9. Bxa6 {[%emt 0:00:40]} Nxa6 {[%emt 0:00:08]} 10. Qe2 {[%emt 0:00:58]} Nb8 {[%emt 0:00:19]} 11. Bxd6 {[%emt 0:00:44]} Qxd6 {[%emt 0:02:16]} 12. e4 {[%emt 0:00:32]} dxe4 {[%emt 0:01:14]} 13. Qxe4 {[%emt 0:00:11]} Qc6 {[%emt 0:01:37]} 14. Qxc6+ {[%emt 0:00:59] A rather calm draw.   Weighted Error Value: White=0.04 (flawless) /Black=0.05 (flawless) .  OK:         	White=3     	Black=2} 1/2-1/2

[Event "SixDays Budapest GM-A January 2024"]
[Site "Budapest"]
[Date "2024.01.31"]
[Round "8.3"]
[White "Barrish, Daniel"]
[Black "Nagy, Gabor"]
[Result "1/2-1/2"]
[ECO "C50"]
[WhiteElo "2347"]
[BlackElo "2450"]
[Annotator "RC"]
[PlyCount "39"]
[EventDate "2024.01.26"]
[EventType "tourn"]
[EventCountry "HUN"]
[SourceTitle "playchess.com"]
[Source "ChessBase"]
[SourceQuality "1"]
[TimeControl "5400+30"]

1. e4 {[%emt 0:03:48]} e5 {[%emt 0:00:30]} 2. Nf3 {[%emt 0:00:07]} Nc6 {[%emt 0:00:27]} 3. Bc4 {[%emt 0:00:07]} Nf6 {[%emt 0:00:22]} 4. d3 {[%emt 0:00:09]} Bc5 {[%emt 0:00:39]} 5. Nc3 {[%emt 0:00:31]} d6 {[%emt 0:00:54]} 6. Na4 {[%emt 0:00:40]} Bb6 {[%emt 0:00:30]} 7. Nxb6 {[%emt 0:00:07]} axb6 {[%emt 0:00:08]} 8. a3 {[%emt 0:00:44]} Be6 {[%emt 0:01:10]} 9. Bxe6 {[%emt 0:00:48]} fxe6 {[%emt 0:01:03]} 10. c3 {[%emt 0:01:29]} O-O {[%emt 0:00:19]} 11. O-O {[%emt 0:00:30]} Qe8 {[%emt 0:00:32]} 12. h3 {[%emt 0:02:19]} h6 {[%emt 0:01:41]} 13. b4 {[%emt 0:01:22]} Nh5 {[%emt 0:01:30]} 14. Kh2 {[%emt 0:01:34]} Qg6 {[%emt 0:07:53]} 15. g3 {[%emt 0:04:49]} Qf7 {[%emt 0:04:06]} 16. Nh4 {[%emt 0:05:41]} g5 {[%emt 0:03:58]} 17. Ng2 {[%emt 0:00:26]} Qf3 {[%emt 0:00:29]} 18. Qxf3 {[%emt 0:09:46]} Rxf3 {[%emt 0:01:43]} 19. Be3 {[%emt 0:01:11]} Kh7 {[%emt 0:00:57]} 20. a4 {[%emt 0:06:15]} 1/2-1/2

[Event "SixDays Budapest GM-A January 2024"]
[Site "Budapest"]
[Date "2024.01.31"]
[Round "8.5"]
[White "Karamsetty, Jeevan"]
[Black "Castellanos Rodriguez, Renier"]
[Result "0-1"]
[ECO "B50"]
[WhiteElo "2211"]
[BlackElo "2468"]
[Annotator "RC"]
[PlyCount "104"]
[EventDate "2024.01.26"]
[EventType "tourn"]
[EventCountry "HUN"]
[SourceTitle "playchess.com"]
[Source "ChessBase"]
[SourceQuality "1"]
[TimeControl "5400+30"]

1. e4 {[%emt 0:02:38]} c5 {[%emt 0:00:06]} 2. Nf3 {[%emt 0:00:14]} d6 {[%emt 0:00:08]} 3. Bc4 {[%emt 0:00:08]} Nc6 {[%emt 0:00:24]} 4. O-O {[%emt 0:00:16]} Nf6 {[%emt 0:00:11]} 5. Re1 {[%emt 0:00:12]} Bg4 {[%emt 0:01:27]} 6. h3 {[%emt 0:00:21]} Bh5 {[%emt 0:00:41]} 7. c3 {[%emt 0:05:41]} e6 {[%emt 0:00:17]} 8. g4 {[%emt 0:07:53]} Bg6 {[%emt 0:00:21]} 9. d4 {[%emt 0:00:31]} d5 {[%emt 0:06:55]} 10. exd5 {[%emt 0:01:57]} Nxd5 {[%emt 0:00:24]} 11. dxc5 {[%emt 0:04:25]} Be7 {[%emt 0:01:07]} 12. Bxd5 {[%emt 0:13:15]} exd5 {[%emt 0:00:26]} 13. Ne5 {[%emt 0:05:03]} O-O {[%emt 0:03:02]} 14. Nxc6 {[%emt 0:12:18]} bxc6 {[%emt 0:00:36]} 15. Be3 {[%emt 0:03:38]} f5 {[%emt 0:10:29]} 16. Nd2 {[%emt 0:01:53]} fxg4 {[%emt 0:01:08]} 17. hxg4 {[%emt 0:00:32]} Bh4 {[%emt 0:05:10]} 18. Qa4 {[%emt 0:16:12]} Qc7 {[%emt 0:03:00]} 19. Qd4 {[%emt 0:07:49]} Rae8 {[%emt 0:03:05]} 20. Rf1 {[%emt 0:03:24]} Bf6 {[%emt 0:02:37]} 21. Qf4 {[%emt 0:02:38]} Qb7 {[%emt 0:04:14]} 22. Qg3 {[%emt 0:03:49]} Qxb2 {[%emt 0:01:07]} 23. Bf4 {[%emt 0:03:30]} Qxc3 {[%emt 0:03:54]} 24. Rac1 {[%emt 0:00:28]} Qxg3+ {[%emt 0:03:50]} 25. Bxg3 {[%emt 0:00:34]} Re2 {[%emt 0:00:33]} 26. Nb3 {[%emt 0:01:08]} Rxa2 {[%emt 0:00:15]} 27. Bd6 {[%emt 0:00:06]} Re8 {[%emt 0:01:53]} 28. Rfe1 {[%emt 0:00:20]} Re4 {[%emt 0:01:01]} 29. Rxe4 {[%emt 0:01:08]} Bxe4 {[%emt 0:00:20]} 30. Bc7 {[%emt 0:00:15]} Bh4 {[%emt 0:01:20]} 31. Bg3 {[%emt 0:00:06]} Bf6 {[%emt 0:01:02]} 32. Bc7 {[%emt 0:00:34]} d4 {[%emt 0:01:38]} 33. g5 {[%emt 0:00:15]} Bxg5 {[%emt 0:00:28]} 34. Re1 {[%emt 0:00:04]} Bd5 {[%emt 0:00:43]} 35. Nxd4 {[%emt 0:00:09]} Bh4 {[%emt 0:01:04]} 36. Ne2 {[%emt 0:00:39]} Rc2 {[%emt 0:01:52]} 37. Bd6 {[%emt 0:00:17]} a5 {[%emt 0:00:30]} 38. Ng3 {[%emt 0:00:30]} Kf7 {[%emt 0:01:04]} 39. Ra1 {[%emt 0:00:48]} Ba2 {[%emt 0:01:10]} 40. Ne4 {[%emt 0:00:56]} a4 {[%emt 0:00:29]} 41. Be5 {[%emt 0:01:01]} Kg6 {[%emt 0:00:52]} 42. Bd4 {[%emt 0:00:38]} Bd5 {[%emt 0:01:50]} 43. Nc3 {[%emt 0:00:48]} Bxf2+ {[%emt 0:01:34]} 44. Bxf2 {[%emt 0:00:05]} Rxc3 {[%emt 0:00:04]} 45. Rxa4 {[%emt 0:00:07]} Rc1+ {[%emt 0:02:17]} 46. Kh2 {[%emt 0:00:07]} Kf5 {[%emt 0:00:36]} 47. Rh4 {[%emt 0:03:10]} g5 {[%emt 0:01:05]} 48. Rb4 {[%emt 0:00:55]} h5 {[%emt 0:01:16]} 49. Be3 {[%emt 0:01:02]} Re1 {[%emt 0:01:13]} 50. Bg1 {[%emt 0:00:29]} h4 {[%emt 0:00:39]} 51. Rb2 {[%emt 0:00:22]} g4 {[%emt 0:00:57]} 52. Rf2+ {[%emt 0:00:18]} Ke5 0-1

[Event "SixDays Budapest GM-A January 2024"]
[Site "Budapest"]
[Date "2024.02.01"]
[Round "9.1"]
[White "Castellanos Rodriguez, Renier"]
[Black "Can, Isik"]
[Result "1-0"]
[ECO "B33"]
[WhiteElo "2468"]
[BlackElo "2500"]
[Annotator "ChessBase"]
[PlyCount "103"]
[EventDate "2024.01.26"]
[EventType "tourn"]
[EventCountry "HUN"]
[SourceTitle "playchess.com"]
[Source "ChessBase"]
[SourceQuality "1"]
[TimeControl "5400+30"]

1. e4 {[%emt 0:00:03]} c5 {[%emt 0:03:08]} 2. Nf3 {[%emt 0:00:45]} e6 {[%emt 0:00:16]} 3. d4 {[%emt 0:00:15]} cxd4 {[%emt 0:00:04]} 4. Nxd4 {[%emt 0:00:03]} Nf6 {[%emt 0:00:04]} 5. Nc3 {[%emt 0:00:14]} Nc6 {[%emt 0:00:03]} 6. Ndb5 {[%emt 0:04:32]} d6 {[%emt 0:00:10]} 7. Bf4 {[%emt 0:00:06]} e5 {[%emt 0:00:02]} 8. Bg5 {[%emt 0:00:08]} a6 {[%emt 0:00:03]} 9. Na3 {[%emt 0:00:05]} b5 {[%emt 0:00:39]} 10. Nd5 {[%emt 0:00:44]} Be7 {[%emt 0:00:04]} 11. Bxf6 {[%emt 0:00:14]} Bxf6 {[%emt 0:00:02]} 12. c3 {[%emt 0:04:10]} Bg5 {[%emt 0:00:29]} 13. Nc2 {[%emt 0:00:50]} Rb8 {[%emt 0:00:05]} 14. Be2 {[%emt 0:00:55]} O-O {[%emt 0:00:46]} 15. O-O {[%emt 0:00:17]} Kh8 {[%emt 0:07:51]} 16. a3 {[%emt 0:02:11]} g6 {[%emt 0:10:55]} 17. Ncb4 {[%emt 0:06:48]} Nxb4 {[%emt 0:07:25]} 18. axb4 {[%emt 0:00:39]} f5 {[%emt 0:01:35]} 19. Bf3 {[%emt 0:02:02]} Bb7 {[%emt 0:04:45]} 20. Qd3 {[%emt 0:01:33]} Rc8 {[%emt 0:07:02]} 21. Rfd1 {[%emt 0:04:05]} Qe8 {[%emt 0:07:39]} 22. Qe2 {[%emt 0:12:08]} f4 {[%emt 0:14:22]} 23. Bg4 {[%emt 0:06:25]} Rc6 {[%emt 0:02:54]} 24. Qf3 {[%emt 0:04:40]} Bc8 {[%emt 0:05:39]} 25. Qh3 {[%emt 0:03:40]} Bxg4 {[%emt 0:00:06]} 26. Qxg4 {[%emt 0:00:04]} Bd8 {[%emt 0:00:30]} 27. h4 {[%emt 0:01:07]} Qf7 {[%emt 0:09:06]} 28. Rd3 {[%emt 0:01:51]} h5 {[%emt 0:00:11]} 29. Qh3 {[%emt 0:00:19]} Rg8 {[%emt 0:05:47]} 30. b3 {[%emt 0:07:07]} g5 {[%emt 0:01:07]} 31. hxg5 {[%emt 0:01:25]} Rxg5 {[%emt 0:00:02]} 32. Kf1 {[%emt 0:02:06]} Rg4 {[%emt 0:01:04]} 33. Qf3 {[%emt 0:01:51]} Qg6 {[%emt 0:01:28]} 34. Rd2 {[%emt 0:00:36]} Rh4 {[%emt 0:04:50]} 35. Rda2 {[%emt 0:02:38]} Rh1+ {[%emt 0:00:18]} 36. Ke2 {[%emt 0:00:05]} Rxa1 {[%emt 0:00:03]} 37. Rxa1 {[%emt 0:00:04]} Kg7 {[%emt 0:00:55]} 38. Rh1 {[%emt 0:02:43]} h4 {[%emt 0:03:27]} 39. Kd3 {[%emt 0:01:49]} Kf7 {[%emt 0:00:28]} 40. Ra1 {[%emt 0:03:06]} Kf8 {[%emt 0:01:30]} 41. Qh3 {[%emt 0:01:04]} Ke8 {[%emt 0:00:01]} 42. Rg1 {[%emt 0:07:34]} Be7 {[%emt 0:01:36]} 43. Qf3 {[%emt 0:01:04]} Qg5 {[%emt 0:02:53]} 44. Qh3 {[%emt 0:03:43]} Qg6 {[%emt 0:00:05]} 45. Rc1 {[%emt 0:02:38]} Bd8 {[%emt 0:00:28]} 46. Rc2 {[%emt 0:05:18]} Be7 {[%emt 0:00:24]} 47. Qf3 {[%emt 0:01:07]} Bd8 {[%emt 0:00:18]} 48. Ra2 {[%emt 0:00:36]} Bb6 {[%emt 0:01:18]} 49. Rxa6 {[%emt 0:01:05]} Qf7 {[%emt 0:00:13]} 50. Qg4 {[%emt 0:01:40]} f3 {[%emt 0:00:29]} 51. gxf3 {[%emt 0:00:32]} Qb7 {[%emt 0:00:42]} 52. Ra8+ {[%emt 0:01:29]} 1-0

[Event "SixDays Budapest GM-A January 2024"]
[Site "Budapest"]
[Date "2024.02.01"]
[Round "9.2"]
[White "Pribelszky, Bence"]
[Black "Karamsetty, Jeevan"]
[Result "0-1"]
[ECO "C41"]
[WhiteElo "2371"]
[BlackElo "2211"]
[Annotator "ChessBase"]
[PlyCount "56"]
[EventDate "2024.01.26"]
[EventType "tourn"]
[EventCountry "HUN"]
[SourceTitle "playchess.com"]
[Source "ChessBase"]
[SourceQuality "1"]
[TimeControl "5400+30"]

1. e4 {[%emt 0:09:02]} e5 {[%emt 0:00:04]} 2. Nf3 {[%emt 0:00:07]} d6 {[%emt 0:00:13]} 3. d4 {[%emt 0:01:03]} exd4 {[%emt 0:00:08]} 4. Nxd4 {[%emt 0:00:05]} Nf6 {[%emt 0:00:05]} 5. Nc3 {[%emt 0:00:07]} Be7 {[%emt 0:00:10]} 6. Bf4 {[%emt 0:01:54]} O-O {[%emt 0:00:10]} 7. Qd2 {[%emt 0:01:37]} Nc6 {[%emt 0:00:08]} 8. O-O-O {[%emt 0:00:59]} Nxd4 {[%emt 0:00:13]} 9. Qxd4 {[%emt 0:00:07]} Be6 {[%emt 0:00:09]} 10. f3 {[%emt 0:01:41]} a6 {[%emt 0:01:13]} 11. Kb1 {[%emt 0:04:56]} b5 {[%emt 0:02:17]} 12. Qd2 {[%emt 0:03:14]} c5 {[%emt 0:10:22]} 13. Bxd6 {[%emt 0:10:12]} Bxd6 {[%emt 0:00:46]} 14. Qxd6 {[%emt 0:00:02]} Qa5 {[%emt 0:00:29]} 15. Be2 {[%emt 0:33:12]} Rac8 {[%emt 0:25:25]} 16. Qf4 {[%emt 0:15:31]} Rfe8 {[%emt 0:09:09]} 17. Rhe1 {[%emt 0:01:25]} b4 {[%emt 0:19:47]} 18. Nd5 {[%emt 0:00:02]} Bxd5 {[%emt 0:00:32]} 19. exd5 {[%emt 0:00:05]} Nxd5 {[%emt 0:00:32]} 20. Rxd5 {[%emt 0:07:35]} b3 {[%emt 0:00:11]} 21. Rdd1 {[%emt 0:00:23]} Qxa2+ {[%emt 0:08:15]} 22. Kc1 {[%emt 0:00:03]} Rxe2 {[%emt 0:00:13]} 23. Rxe2 {[%emt 0:00:59]} Qa1+ {[%emt 0:00:05]} 24. Kd2 {[%emt 0:00:04]} Rd8+ {[%emt 0:00:05]} 25. Kc3 {[%emt 0:03:39]} Qxd1 {[%emt 0:05:59]} 26. Qe5 {[%emt 0:01:49]} Qd7 {[%emt 0:02:11]} 27. Re1 {[%emt 0:02:14]} Qb5 {[%emt 0:02:45]} 28. Re4 {[%emt 0:01:51]} bxc2 {[%emt 0:01:23]} 0-1

[Event "SixDays Budapest GM-A January 2024"]
[Site "Budapest"]
[Date "2024.02.01"]
[Round "9.3"]
[White "Nagy, Gabor"]
[Black "Berczes, David"]
[Result "1/2-1/2"]
[ECO "A30"]
[WhiteElo "2450"]
[BlackElo "2439"]
[Annotator "ChessBase"]
[PlyCount "23"]
[EventDate "2024.01.26"]
[EventType "tourn"]
[EventCountry "HUN"]
[SourceTitle "playchess.com"]
[Source "ChessBase"]
[SourceQuality "1"]
[TimeControl "5400+30"]

1. Nf3 Nf6 2. c4 c5 3. g3 b6 4. Bg2 Bb7 5. O-O e6 6. Nc3 Be7 7. d4 cxd4 8. Nxd4 Bxg2 9. Kxg2 g6 10. b3 O-O 11. Bb2 Qc7 12. e4 1/2-1/2

[Event "SixDays Budapest GM-A January 2024"]
[Site "Budapest"]
[Date "2024.02.01"]
[Round "9.4"]
[White "Sedlak, Nikola"]
[Black "Barrish, Daniel"]
[Result "1-0"]
[ECO "A46"]
[WhiteElo "2463"]
[BlackElo "2347"]
[Annotator "ChessBase"]
[PlyCount "83"]
[EventDate "2024.01.26"]
[EventType "tourn"]
[EventCountry "HUN"]
[SourceTitle "playchess.com"]
[Source "ChessBase"]
[SourceQuality "1"]
[TimeControl "5400+30"]

1. d4 {[%emt 0:06:56]} Nf6 {[%emt 0:00:16]} 2. Nf3 {[%emt 0:00:18]} d5 {[%emt 0:00:07]} 3. c3 {[%emt 0:01:00]} Bf5 {[%emt 0:03:10]} 4. Qb3 {[%emt 0:00:14]} Qc8 {[%emt 0:00:42]} 5. c4 {[%emt 0:00:27]} dxc4 {[%emt 0:05:23]} 6. Qxc4 {[%emt 0:00:09]} Nbd7 {[%emt 0:01:15]} 7. g3 {[%emt 0:00:16]} c5 {[%emt 0:00:42]} 8. Nc3 {[%emt 0:00:52]} e6 {[%emt 0:12:13]} 9. Bg2 {[%emt 0:00:12]} Ne4 {[%emt 0:01:01]} 10. Nh4 {[%emt 0:07:51]} Nd6 {[%emt 0:05:17]} 11. Qa4 {[%emt 0:00:29]} cxd4 {[%emt 0:00:55]} 12. Qxd4 {[%emt 0:07:49]} Be7 {[%emt 0:03:17]} 13. O-O {[%emt 0:01:54]} O-O {[%emt 0:12:24]} 14. Bf4 {[%emt 0:04:12]} e5 {[%emt 0:15:01]} 15. Bxe5 {[%emt 0:00:24]} Nxe5 {[%emt 0:00:07]} 16. Qxe5 {[%emt 0:00:07]} Be6 {[%emt 0:00:55]} 17. Rac1 {[%emt 0:01:46]} Bxh4 {[%emt 0:03:38]} 18. Qxd6 {[%emt 0:00:46]} Qd8 {[%emt 0:00:17]} 19. Qb4 {[%emt 0:05:52]} Bg5 {[%emt 0:02:02]} 20. e3 {[%emt 0:00:29]} Rb8 {[%emt 0:00:59]} 21. Rfd1 {[%emt 0:01:19]} Qe7 {[%emt 0:00:40]} 22. Qxe7 {[%emt 0:02:27]} Bxe7 {[%emt 0:00:04]} 23. Nd5 {[%emt 0:00:34]} Bd8 {[%emt 0:01:06]} 24. h4 {[%emt 0:04:24]} g6 {[%emt 0:01:07]} 25. b3 {[%emt 0:08:23]} h5 {[%emt 0:01:32]} 26. Bf3 {[%emt 0:01:16]} Kg7 {[%emt 0:04:35]} 27. Nc7 {[%emt 0:05:39]} a6 {[%emt 0:04:44]} 28. Nxe6+ {[%emt 0:01:35]} fxe6 {[%emt 0:00:05]} 29. Rd7+ {[%emt 0:00:18]} Rf7 {[%emt 0:01:45]} 30. Rcd1 {[%emt 0:00:09]} Bf6 {[%emt 0:00:11]} 31. Rxf7+ {[%emt 0:01:57]} Kxf7 {[%emt 0:00:04]} 32. Rd7+ {[%emt 0:00:12]} Be7 {[%emt 0:01:48]} 33. Bxb7 {[%emt 0:01:53]} Ke8 {[%emt 0:00:14]} 34. Bc6 {[%emt 0:03:30]} Rb6 {[%emt 0:00:20]} 35. Ba4 {[%emt 0:00:44]} Kf7 {[%emt 0:00:23]} 36. Rc7 {[%emt 0:00:33]} Rd6 {[%emt 0:00:23]} 37. b4 {[%emt 0:00:47]} Rd2 {[%emt 0:02:09]} 38. Bc2 {[%emt 0:00:50]} Kf6 {[%emt 0:00:32]} 39. a3 {[%emt 0:00:53]} Bd8 {[%emt 0:02:26]} 40. Rc6 {[%emt 0:00:23]} g5 {[%emt 0:00:09]} 41. hxg5+ {[%emt 0:01:00]} Kxg5 {[%emt 0:00:06]} 42. Be4 {[%emt 0:00:23]} 1-0